fUSD/lending_fUSD_20260127
["ID","MTS","AMOUNT","RATE_DAILY","PERIOD"]
[403711845,1769500232273,-13539.78239393,0.00015624,2]
[403711846,1769500232301,-17175.55765392,0.00015624,2]
[403711921,1769500240260,-2048.00571692,0.00015561,2]
[403711922,1769500240270,-15658.2811163,0.00015624,2]
[403711923,1769500240313,-672630.2644923,0.00015624,2]
[403711924,1769500240322,-200.0,0.0001566,2]
[403711925,1769500240332,-195.0,0.00015668,2]
[403711926,1769500240341,-500.0,0.00015676,2]
[403711927,1769500240350,-1000.0,0.00015695,2]
[403711928,1769500240359,-1500.0,0.00015713,2]
[403711929,1769500240368,-300.0,0.00015714,2]
[403711930,1769500240377,-500.0,0.00015715,2]
[403711931,1769500240386,-200.0,0.00015715,2]
[403711932,1769500240395,-500.0,0.00015715,2]
[403711933,1769500240404,-500.0,0.00015715,2]
[403711934,1769500240413,-500.0,0.00015715,2]
[403711935,1769500240422,-500.0,0.00015715,2]
[403711936,1769500240431,-500.0,0.00015715,2]
[403711937,1769500240440,-500.0,0.00015715,2]
[403711938,1769500240452,-500.0,0.00015715,2]
[403711939,1769500240462,-500.0,0.00015715,2]
[403711940,1769500240471,-500.0,0.00015715,2]
[403711941,1769500240481,-500.0,0.00015715,2]
[403711942,1769500240490,-500.0,0.00015715,2]
[403711943,1769500240499,-500.0,0.00015715,2]
[403711944,1769500240508,-500.0,0.00015715,2]
[403711945,1769500240518,-500.0,0.00015715,2]
[403711946,1769500240528,-500.0,0.00015715,2]
[403711947,1769500240537,-500.0,0.00015715,2]
[403711948,1769500240546,-500.0,0.00015715,2]
[403711949,1769500240555,-500.0,0.00015715,2]
[403711950,1769500240564,-500.0,0.00015715,2]
[403711951,1769500240573,-500.0,0.00015715,2]
[403711952,1769500240583,-200.0,0.00015715,2]
[403711953,1769500240592,-500.0,0.00015715,2]
[403711954,1769500240601,-194.2044672,0.00015715,2]
[403711955,1769500240610,-500.0,0.00015715,2]
[403711956,1769500240619,-500.0,0.00015715,2]
[403711957,1769500240628,-500.0,0.00015715,2]
[403711959,1769500240638,-151.0,0.00015715,2]
[403711960,1769500240648,-151.0,0.00015715,2]
[403711961,1769500240658,-151.0,0.00015715,2]
[403711963,1769500240667,-151.0,0.00015715,2]
[403711964,1769500240676,-151.0,0.00015715,2]
[403711966,1769500240685,-151.0,0.00015715,2]
[403711967,1769500240695,-151.0,0.00015715,2]
[403711968,1769500240704,-151.0,0.00015715,2]
[403711969,1769500240713,-151.0,0.00015715,2]
[403711970,1769500240722,-151.0,0.00015715,2]
[403711971,1769500240731,-151.0,0.00015715,2]
[403711972,1769500240741,-151.0,0.00015715,2]
[403711973,1769500240750,-615.98,0.00015715,2]
[403711974,1769500240759,-22135.63,0.00015724,2]
[403711975,1769500240769,-164.13,0.00015741,2]
[403711976,1769500240778,-500.0,0.00015741,2]
[403711977,1769500240787,-150.00047401,0.00015796,2]
[403711978,1769500240796,-150.0,0.00015844,2]
[403711979,1769500240806,-2531.6,0.00015893,2]
[403711980,1769500240815,-577.25,0.00015918,2]
[403711981,1769500240824,-615.98,0.00015989,2]
[403711982,1769500240833,-500.0,0.00016015,2]
[403711983,1769500240842,-165.21,0.00016131,2]
[403711984,1769500240851,-500.0,0.00016247,2]
[403711985,1769500240860,-615.98,0.00016263,2]
[403711986,1769500240870,-646.0,0.00016278,2]
[403711987,1769500240879,-196.56401586,0.00016288,2]
[403711988,1769500240888,-500.0,0.00016373,2]
[403711989,1769500240897,-500.0,0.00016373,2]
[403711990,1769500240906,-500.0,0.00016436,2]
[403711991,1769500240915,-150.0,0.00016436,2]
[403711992,1769500240924,-500.0,0.00016436,2]
[403711993,1769500240934,-150.0,0.00016436,2]
[403711994,1769500240943,-500.0,0.00016436,2]
[403711995,1769500240952,-150.0,0.00016436,2]
[403711996,1769500240962,-500.0,0.00016436,2]
[403711997,1769500240971,-500.0,0.00016436,2]
[403711998,1769500240980,-150.0,0.00016436,2]
[403711999,1769500240990,-150.0,0.00016436,2]
[403712000,1769500240999,-500.0,0.00016436,2]
[403712001,1769500241009,-500.0,0.00016436,2]
[403712002,1769500241020,-500.0,0.00016436,2]
[403712003,1769500241032,-500.0,0.00016436,2]
[403712004,1769500241043,-150.0,0.00016436,2]
[403712005,1769500241052,-150.0,0.00016436,2]
[403712006,1769500241061,-438.0,0.00016436,2]
[403712007,1769500241071,-500.0,0.00016436,2]
[403712008,1769500241081,-150.0,0.00016436,2]
[403712009,1769500241090,-500.0,0.00016436,2]
[403712010,1769500241099,-500.0,0.00016438,2]
[403712011,1769500241107,-798.0,0.00016438,2]
[403712012,1769500241116,-1016.0,0.00016483,2]
[403712013,1769500241125,-500.0,0.00016491,2]
[403712014,1769500241135,-152.26425777,0.00016491,2]
[403712015,1769500241146,-500.0,0.00016491,2]
[403712016,1769500241156,-150.0,0.00016491,2]
[403712017,1769500241167,-500.0,0.00016491,2]
[403712018,1769500241179,-150.0,0.00016491,2]
[403712019,1769500241189,-500.0,0.00016491,2]
[403712020,1769500241198,-500.0,0.00016491,2]
[403712021,1769500241208,-203.05579303,0.00016491,2]
[403712022,1769500241216,-500.0,0.00016491,2]
[403712023,1769500241225,-500.0,0.00016491,2]
[403712024,1769500241235,-500.0,0.00016491,2]
[403712025,1769500241243,-500.0,0.00016491,2]
[403712026,1769500241252,-150.0,0.00016491,2]
[403712027,1769500241262,-438.0,0.00016491,2]
[403712028,1769500241271,-500.0,0.00016491,2]
[403712029,1769500241281,-500.0,0.00016491,2]
[403712030,1769500241290,-500.0,0.00016493,2]
[403712031,1769500241301,-577.25,0.00016515,2]
[403712032,1769500241310,-151.83051386,0.00016516,2]
[403712033,1769500241319,-500.0,0.00016516,2]
[403712034,1769500241327,-500.0,0.00016516,2]
[403712035,1769500241337,-500.0,0.00016516,2]
[403712036,1769500241347,-166.2,0.00016529,2]
[403712037,1769500241355,-150.0,0.00016536,2]
[403712038,1769500241365,-615.98,0.00016537,2]
[403712039,1769500241374,-500.0,0.00016546,2]
[403712040,1769500241383,-500.0,0.00016546,2]
[403712041,1769500241392,-150.0,0.00016546,2]
[403712042,1769500241402,-500.0,0.00016546,2]
[403712043,1769500241412,-206.08138126,0.00016546,2]
[403712044,1769500241421,-500.0,0.00016546,2]
[403712045,1769500241430,-500.0,0.00016546,2]
[403712046,1769500241439,-500.0,0.00016546,2]
[403712047,1769500241449,-500.0,0.00016546,2]
[403712048,1769500241458,-500.0,0.00016546,2]
[403712049,1769500241468,-500.0,0.00016546,2]
[403712050,1769500241477,-150.0,0.00016546,2]
[403712051,1769500241487,-438.0,0.00016546,2]
[403712052,1769500241496,-500.0,0.00016546,2]
[403712053,1769500241505,-348.78091583,0.00016546,2]
[403712054,1769500241514,-500.0,0.00016548,2]
[403712055,1769500241523,-166.2,0.00016555,2]
[403712056,1769500241531,-500.0,0.00016571,2]
[403712057,1769500241540,-500.0,0.00016571,2]
[403712058,1769500241549,-500.0,0.00016571,2]
[403712059,1769500241558,-166.2,0.00016581,2]
[403712060,1769500241567,-210.03815155,0.00016591,2]
[403712061,1769500241579,-500.0,0.000166,2]
[403712062,1769500241588,-500.0,0.000166,2]
[403712063,1769500241597,-159.21632569,0.000166,2]
[403712064,1769500241606,-303.28777164,0.000166,2]
[403712065,1769500241615,-500.0,0.000166,2]
[403712066,1769500241623,-500.0,0.000166,2]
[403712067,1769500241632,-500.0,0.000166,2]
[403712068,1769500241641,-500.0,0.000166,2]
[403712069,1769500241650,-500.0,0.000166,2]
[403712070,1769500241659,-500.0,0.000166,2]
[403712071,1769500241668,-256.40858732,0.000166,2]
[403712072,1769500241679,-438.0,0.000166,2]
[403712073,1769500241689,-160.43052189,0.000166,2]
[403712074,1769500241977,-500.0,0.00016602,2]
[403712075,1769500241987,-166.2,0.00016607,2]
[403712076,1769500241997,-500.0,0.00016626,2]
[403712077,1769500242008,-500.0,0.00016626,2]
[403712078,1769500242018,-500.0,0.00016626,2]
[403712079,1769500242030,-166.2,0.00016633,2]
[403712080,1769500242039,-500.0,0.00016655,2]
[403712081,1769500242048,-500.0,0.00016655,2]
[403712082,1769500242059,-500.34724417,0.00016655,2]
[403712083,1769500242068,-500.0,0.00016655,2]
[403712084,1769500242077,-500.0,0.00016655,2]
[403712085,1769500242086,-500.0,0.00016655,2]
[403712086,1769500242096,-500.0,0.00016655,2]
[403712087,1769500242105,-438.0,0.00016655,2]
[403712088,1769500242114,-500.0,0.00016655,2]
[403712089,1769500242123,-500.0,0.00016657,2]
[403712090,1769500242132,-166.2,0.00016659,2]
[403712091,1769500242141,-734.0,0.00016672,2]
[403712092,1769500242151,-500.0,0.0001668,2]
[403712093,1769500242160,-500.0,0.0001668,2]
[403712094,1769500242169,-500.0,0.0001668,2]
[403712095,1769500242178,-166.2,0.00016685,2]
[403712096,1769500242187,-500.0,0.0001671,2]
[403712097,1769500242196,-500.0,0.0001671,2]
[403712098,1769500242205,-500.0,0.0001671,2]
[403712099,1769500242214,-500.0,0.0001671,2]
[403712100,1769500242223,-500.0,0.0001671,2]
[403712101,1769500242232,-500.0,0.0001671,2]
[403712102,1769500242241,-500.0,0.0001671,2]
[403712103,1769500242250,-500.0,0.0001671,2]
[403712104,1769500242259,-500.0,0.0001671,2]
[403712105,1769500242269,-428.5711862,0.0001671,2]
[403712106,1769500242278,-275.02498352,0.0001671,2]
[403712107,1769500242287,-500.0,0.0001671,2]
[403712108,1769500242296,-500.0,0.0001671,2]
[403712109,1769500242305,-500.0,0.0001671,2]
[403712110,1769500242314,-500.0,0.0001671,2]
[403712111,1769500242323,-500.0,0.0001671,2]
[403712112,1769500242333,-500.0,0.0001671,2]
[403712113,1769500242342,-500.0,0.0001671,2]
[403712114,1769500242352,-500.0,0.0001671,2]
[403712115,1769500242361,-500.0,0.0001671,2]
[403712116,1769500242370,-500.0,0.0001671,2]
[403712117,1769500242379,-500.0,0.0001671,2]
[403712118,1769500242388,-500.0,0.0001671,2]
[403712119,1769500242397,-500.0,0.0001671,2]
[403712120,1769500242407,-500.0,0.0001671,2]
[403712121,1769500242415,-500.0,0.0001671,2]
[403712122,1769500242424,-500.0,0.0001671,2]
[403712123,1769500242434,-403.57788103,0.0001671,2]
[403712124,1769500242442,-438.0,0.0001671,2]
[403712125,1769500242451,-500.0,0.0001671,2]
[403712126,1769500242460,-166.2,0.00016712,2]
[403712127,1769500242469,-500.0,0.00016712,2]
[403712128,1769500242480,-151.56724101,0.00016712,2]
[403712129,1769500242489,-1000.0,0.00016721,2]
[403712130,1769500242498,-500.0,0.00016735,2]
[403712131,1769500242507,-639.19649656,0.00016735,2]
[403712132,1769500242516,-500.0,0.00016735,2]
[403712133,1769500242525,-166.2,0.00016738,2]
[403712134,1769500242535,-152.63440496,0.00016742,2]
[403712135,1769500242544,-9182.98942816,0.00016742,2]
[403712136,1769500242553,-291.21084643,0.00016742,2]
[403712137,1769500242562,-164.43363999,0.00016742,2]
[403712138,1769500242571,-166.2,0.00016764,2]
[403712139,1769500242580,-500.0,0.00016765,2]
[403712140,1769500242589,-500.0,0.00016765,2]
[403712141,1769500242598,-357.2477982,0.00016765,2]
[403712142,1769500242608,-500.0,0.00016765,2]
[403712143,1769500242618,-500.0,0.00016765,2]
[403712144,1769500242627,-438.0,0.00016765,2]
[403712145,1769500242636,-500.0,0.00016765,2]
[403712146,1769500242644,-500.0,0.00016767,2]
[403712147,1769500242653,-166.2,0.0001679,2]
[403712148,1769500242663,-500.0,0.0001679,2]
[403712149,1769500242671,-500.0,0.0001679,2]
[403712150,1769500242680,-500.0,0.000168,6]
[403712151,1769500242689,-615.98,0.00016811,2]
[403712152,1769500242698,-289.0,0.00016812,2]
[403712153,1769500242707,-166.2,0.00016816,2]
[403712154,1769500242716,-151.0,0.00016818,2]
[403712155,1769500242725,-500.0,0.0001682,2]
[403712156,1769500242734,-500.0,0.0001682,2]
[403712157,1769500242743,-522.17460906,0.0001682,2]
[403712158,1769500242752,-422.75859316,0.0001682,2]
[403712159,1769500242762,-500.0,0.0001682,2]
[403712160,1769500242771,-485.57980121,0.0001682,2]
[403712161,1769500242780,-500.0,0.0001682,2]
[403712162,1769500242790,-500.0,0.0001682,2]
[403712163,1769500242803,-500.0,0.0001682,2]
[403712164,1769500242812,-500.0,0.0001682,2]
[403712165,1769500242822,-500.0,0.0001682,2]
[403712166,1769500242832,-319.7700507,0.0001682,2]
[403712167,1769500242841,-500.0,0.0001682,2]
[403712168,1769500242851,-500.0,0.0001682,2]
[403712169,1769500242860,-500.0,0.0001682,2]
[403712170,1769500242871,-364.37974827,0.0001682,2]
[403712171,1769500242881,-438.0,0.0001682,2]
[403712172,1769500242890,-500.0,0.0001682,2]
[403712173,1769500242900,-500.0,0.0001682,2]
[403712174,1769500242912,-500.0,0.0001682,2]
[403712175,1769500242922,-500.0,0.0001682,2]
[403712176,1769500242932,-500.0,0.0001682,2]
[403712177,1769500242941,-500.0,0.0001682,2]
[403712179,1769500242951,-500.0,0.0001682,2]
[403712180,1769500242960,-500.0,0.0001682,2]
[403712181,1769500242970,-500.0,0.0001682,2]
[403712182,1769500242980,-500.0,0.0001682,2]
[403712183,1769500242990,-500.0,0.0001682,2]
[403712184,1769500242999,-500.0,0.0001682,2]
[403712185,1769500243008,-500.0,0.0001682,2]
[403712186,1769500243018,-500.0,0.0001682,2]
[403712187,1769500243027,-500.0,0.0001682,2]
[403712188,1769500243037,-339.55102967,0.0001682,2]
[403712189,1769500243048,-500.0,0.0001682,2]
[403712190,1769500243057,-500.0,0.0001682,2]
[403712191,1769500243066,-520.64898802,0.0001682,2]
[403712192,1769500243075,-500.0,0.0001682,2]
[403712193,1769500243085,-500.0,0.0001682,2]
[403712194,1769500243094,-500.0,0.0001682,2]
[403712195,1769500243103,-500.0,0.0001682,2]
[403712196,1769500243114,-500.0,0.0001682,2]
[403712197,1769500243124,-500.0,0.0001682,2]
[403712198,1769500243133,-150.0,0.0001682,2]
[403712199,1769500243143,-500.0,0.00016822,2]
[403712200,1769500243153,-166.2,0.00016842,2]
[403712201,1769500243161,-500.0,0.00016845,2]
[403712202,1769500243170,-500.0,0.00016845,2]
[403712203,1769500243180,-500.0,0.00016849,2]
[403712204,1769500243191,-658.51514356,0.00016861,2]
[403712205,1769500243202,-166.2,0.00016868,2]
[403712206,1769500243214,-9182.98942807,0.00016871,2]
[403712207,1769500243225,-500.0,0.00016874,2]
[403712208,1769500243235,-500.0,0.00016874,2]
[403712209,1769500243247,-438.0,0.00016874,2]
[403712210,1769500243257,-500.0,0.00016874,2]
[403712211,1769500243267,-500.0,0.00016876,2]
[403712212,1769500243275,-166.2,0.00016894,2]
[403712213,1769500243285,-500.0,0.000169,2]
[403712214,1769500243294,-500.0,0.000169,2]
[403712215,1769500243303,-1000.0,0.000169,6]
[403712216,1769500243312,-11263.09779402,0.000169,2]
[403712217,1769500243323,-166.2,0.0001692,2]
[403712218,1769500243331,-1000.0,0.00016921,2]
[403712219,1769500243340,-1000.0,0.00016921,2]
[403712220,1769500243349,-500.0,0.00016929,2]
[403712221,1769500243359,-500.0,0.00016929,2]
[403712222,1769500243369,-438.0,0.00016929,2]
[403712223,1769500243380,-500.0,0.00016929,2]
[403712224,1769500243388,-166.2,0.00016947,2]
[403712225,1769500243398,-500.0,0.00016954,2]
[403712226,1769500243409,-500.0,0.00016954,2]
[403712227,1769500243419,-166.2,0.00016973,2]
[403712228,1769500243428,-200.0,0.00016983,2]
[403712229,1769500243438,-500.0,0.00016984,2]
[403712230,1769500243449,-313.4131902,0.00016984,2]
[403712231,1769500243457,-438.0,0.00016984,2]
[403712232,1769500243466,-500.0,0.00016984,2]
[403712233,1769500243475,-315.42,0.00016986,2]
[403712234,1769500243485,-345.0,0.00016988,2]
[403712235,1769500243495,-166.2,0.00016999,2]
[403712236,1769500243505,-9182.98942807,0.00016999,2]
[403712237,1769500243515,-500.0,0.00017009,2]
[403712238,1769500243524,-188.13086915,0.00017009,2]
[403712239,1769500243533,-166.2,0.00017025,2]
[403712240,1769500243542,-500.0,0.00017039,2]
[403712241,1769500243551,-438.0,0.00017039,2]
[403712242,1769500243560,-500.0,0.00017039,2]
[403712243,1769500243570,-500.0,0.00017064,2]
[403712244,1769500243578,-616.02,0.00017085,2]
[403712245,1769500243587,-420.0,0.00017088,2]
[403712246,1769500243596,-500.0,0.00017094,2]
[403712247,1769500243606,-438.0,0.00017094,2]
[403712248,1769500243615,-500.0,0.00017094,2]
[403712249,1769500243624,-577.25,0.00017112,2]
[403712250,1769500243634,-598.20665087,0.00017119,2]
[403712251,1769500243645,-9182.98942807,0.00017128,2]
[403712252,1769500243656,-441.0,0.00017145,2]
[403712253,1769500243666,-500.0,0.00017148,2]
[403712254,1769500243676,-438.0,0.00017148,2]
[403712255,1769500243686,-500.0,0.00017148,2]
[403712256,1769500243695,-150.00047401,0.00017152,2]
[403712257,1769500243705,-1680.0,0.00017174,2]
[403712258,1769500243715,-250.0,0.0001718,2]
[403712259,1769500243725,-375.42821814,0.0001718,2]
[403712260,1769500243735,-500.0,0.0001718,2]
[403712261,1769500243746,-275.25234935,0.00017203,2]
[403712262,1769500243755,-438.0,0.00017203,2]
[403712263,1769500243764,-500.0,0.00017203,2]
[403712264,1769500243774,-600.0,0.00017226,2]
[403712266,1769500243783,-2553.93048328,0.00017226,2]
[403712267,1769500243793,-200.0,0.00017226,2]
[403712268,1769500243802,-195.0,0.00017226,2]
[403712269,1769500243811,-250.0,0.00017226,2]
[403712270,1769500243820,-250.0,0.00017243,2]
[403712271,1769500243829,-300.0,0.00017243,2]
[403712272,1769500243839,-502.14491625,0.00017243,2]
[403712273,1769500243848,-9182.98942807,0.00017257,2]
[403712274,1769500243857,-438.0,0.00017258,2]
[403712275,1769500243866,-500.0,0.00017258,2]
[403712276,1769500243876,-1318.30787153,0.0001728,2]
[403712277,1769500243885,-438.0,0.00017313,2]
[403712278,1769500243895,-550.0,0.00017313,2]
[403712279,1769500243904,-438.0,0.00017368,2]
[403712280,1769500243913,-358.0,0.00017381,2]
[403712281,1769500243923,-151.0,0.00017382,2]
[403712282,1769500243931,-414.71781927,0.00017384,2]
[403712283,1769500243940,-18610.57950568,0.00017385,2]
[403712284,1769500243950,-9182.98942807,0.00017385,2]
[403712285,1769500243959,-358.0,0.00017391,2]
[403712286,1769500243968,-500.0,0.00017407,2]
[403712287,1769500243978,-151.81100737,0.00017407,2]
[403712288,1769500243987,-150.83421904,0.00017407,2]
[403712289,1769500243997,-155.94724261,0.00017407,2]
[403712290,1769500244006,-438.0,0.00017422,2]
[403712291,1769500244016,-358.0,0.00017441,2]
[403712292,1769500244028,-322.6107,0.0001745,2]
[403712293,1769500244037,-3543.0,0.0001745,2]
[403712294,1769500244047,-151.0,0.0001745,2]
[403712295,1769500244056,-174.61919141,0.0001745,2]
[403712296,1769500244067,-250.0,0.0001745,2]
[403712297,1769500244076,-250.0,0.0001745,2]
[403712298,1769500244086,-250.0,0.0001745,2]
[403712299,1769500244095,-250.0,0.0001745,2]
[403712300,1769500244104,-250.0,0.0001745,2]
[403712301,1769500244114,-250.0,0.0001745,2]
[403712302,1769500244123,-250.0,0.0001745,2]
[403712303,1769500244132,-250.0,0.0001745,2]
[403712304,1769500244141,-250.0,0.0001745,2]
[403712305,1769500244150,-250.0,0.0001745,2]
[403712306,1769500244159,-500.0,0.0001745,2]
[403712307,1769500244168,-263.75534005,0.0001745,2]
[403712308,1769500244177,-500.0,0.0001745,2]
[403712309,1769500244186,-823.77908852,0.0001745,2]
[403712310,1769500244195,-221.90167299,0.0001745,2]
[403712311,1769500244204,-500.0,0.0001745,2]
[403712312,1769500244213,-500.0,0.0001745,2]
[403712313,1769500244222,-250.0,0.0001745,2]
[403712314,1769500244231,-500.0,0.0001745,2]
[403712315,1769500244240,-500.0,0.0001745,2]
[403712316,1769500244249,-217.01450839,0.0001745,2]
[403712317,1769500244258,-500.0,0.0001745,2]
[403712318,1769500244267,-500.0,0.0001745,2]
[403712319,1769500244276,-500.0,0.0001745,2]
[403712320,1769500244284,-500.0,0.0001745,2]
[403712321,1769500244293,-500.0,0.0001745,2]
[403712322,1769500244302,-500.0,0.0001745,2]
[403712323,1769500244312,-500.0,0.0001745,2]
[403712324,1769500244321,-151.0,0.0001745,2]
[403712325,1769500244330,-500.0,0.0001745,2]
[403712326,1769500244339,-500.0,0.0001745,2]
[403712327,1769500244348,-500.0,0.0001745,2]
[403712328,1769500244357,-500.0,0.0001745,2]
[403712329,1769500244366,-500.0,0.0001745,2]
[403712330,1769500244375,-500.0,0.0001745,2]
[403712331,1769500244384,-500.0,0.0001745,2]
[403712332,1769500244394,-695.39793187,0.0001745,2]
[403712333,1769500244403,-201.93286099,0.0001745,2]
[403712334,1769500244412,-500.0,0.00017462,2]
[403712335,1769500244421,-165.21,0.00017462,2]
[403712336,1769500244430,-1000.0,0.00017468,2]
[403712337,1769500244439,-1505.35974623,0.00017468,2]
[403712338,1769500244448,-438.0,0.00017477,2]
[403712339,1769500244457,-357.31,0.000175,2]
[403712340,1769500244466,-1600.0,0.000175,6]
[403712341,1769500244475,-209.40437684,0.00017505,2]
[403712342,1769500244485,-18610.57950568,0.00017514,2]
[403712343,1769500244494,-9182.98942807,0.00017514,2]
[403712344,1769500244503,-500.0,0.00017517,2]
[403712345,1769500244512,-438.0,0.00017532,2]
[403712346,1769500244522,-217.15233878,0.0001756,2]
[403712347,1769500244531,-358.0,0.0001757,2]
[403712348,1769500244540,-263.72182352,0.00017571,2]
[403712349,1769500244548,-358.0,0.00017577,2]
[403712350,1769500244558,-438.0,0.00017587,2]
[403712351,1769500244567,-500.0,0.00017589,2]
[403712352,1769500244576,-516.0,0.00017598,2]
[403712353,1769500244586,-2100.0,0.000176,6]
[403712354,1769500244595,-225.18697532,0.00017615,2]
[403712355,1769500244605,-438.0,0.00017641,2]
[403712356,1769500244614,-18610.57950568,0.00017643,2]
[403712357,1769500244623,-9182.98942807,0.00017643,2]
[403712358,1769500244632,-1000.0,0.00017656,2]
[403712359,1769500244642,-153.96899979,0.0001767,2]
[403712360,1769500244651,-150.0,0.0001767,2]
[403712361,1769500244660,-233.51889341,0.0001767,2]
[403712362,1769500244669,-516.0,0.00017694,2]
[403712363,1769500244679,-439.0,0.00017696,2]
[403712364,1769500244687,-2600.0,0.000177,6]
[403712365,1769500244696,-577.25,0.00017709,2]
[403712366,1769500244705,-516.0,0.00017721,2]
[403712367,1769500244714,-156.65967875,0.00017725,2]
[403712368,1769500244723,-242.15909246,0.00017725,2]
[403712369,1769500244732,-150.99,0.00017728,2]
[403712370,1769500244741,-9999.99,0.00017728,2]
[403712371,1769500244750,-299.99,0.00017728,4]
[403712372,1769500244758,-9621.46,0.00017728,2]
[403712373,1769500244767,-6785.33,0.00017728,2]
[403712374,1769500244777,-7189.26,0.00017728,2]
[403712375,1769500244786,-1469.15,0.00017728,2]
[403712376,1769500244796,-2587.03,0.00017728,2]
[403712377,1769500244805,-24451.51,0.00017728,2]
[403712378,1769500244814,-18610.57950568,0.00017771,2]
[403712379,1769500244823,-9182.98942807,0.00017771,2]
[403712380,1769500244833,-3479.03533063,0.0001778,2]
[403712381,1769500244842,-6137.43070646,0.0001778,2]
[403712382,1769500244851,-9181.22928124,0.0001778,2]
[403712383,1769500244861,-12422.52,0.0001778,2]
[403712384,1769500244870,-251.11897888,0.0001778,2]
[403712385,1769500244879,-1008.1,0.00017793,2]
[403712386,1769500244888,-516.0,0.00017799,2]
[403712387,1769500244897,-500.0,0.000178,6]
[403712388,1769500244907,-500.0,0.00017808,2]
[403712389,1769500244916,-260.4103811,0.00017835,2]
[403712390,1769500244925,-200.0,0.00017856,2]
[403712391,1769500244935,-500.0,0.00017863,2]
[403712392,1769500244945,-516.0,0.00017873,2]
[403712393,1769500244956,-270.0455652,0.0001789,2]
[403712394,1769500244965,-500.0,0.00017899,2]
[403712395,1769500244975,-500.0,0.00017899,2]
[403712396,1769500244984,-500.0,0.00017899,2]
[403712397,1769500244995,-500.0,0.00017899,2]
[403712398,1769500245006,-500.0,0.00017899,2]
[403712399,1769500245015,-500.0,0.00017899,2]
[403712400,1769500245025,-500.0,0.00017899,2]
[403712401,1769500245034,-500.0,0.00017899,2]
[403712402,1769500245043,-500.0,0.00017899,2]
[403712403,1769500245052,-500.0,0.00017899,2]
[403712404,1769500245063,-500.0,0.00017899,2]
[403712405,1769500245072,-500.0,0.00017899,2]
[403712406,1769500245081,-500.0,0.00017899,2]
[403712407,1769500245090,-500.0,0.00017899,2]
[403712408,1769500245100,-500.0,0.00017899,2]
[403712409,1769500245109,-500.0,0.00017899,2]
[403712410,1769500245118,-500.0,0.00017899,2]
[403712411,1769500245128,-500.0,0.00017899,2]
[403712412,1769500245137,-486.92749932,0.00017899,2]
[403712413,1769500245146,-500.0,0.00017899,2]
[403712414,1769500245155,-10000.0,0.000179,2]
[403712415,1769500245164,-18610.57950568,0.000179,2]
[403712416,1769500245174,-500.0,0.000179,6]
[403712417,1769500245183,-825.38232318,0.000179,2]
[403712418,1769500245191,-616.21562838,0.000179,2]
[403712419,1769500245200,-9182.98942807,0.000179,2]
[403712420,1769500245209,-7240.0,0.000179,2]
[403712421,1769500245218,-516.0,0.00017913,2]
[403712422,1769500245227,-500.0,0.00017918,2]
[403712423,1769500245236,-2847.0,0.00017944,2]